fUSD/lending_fUSD_20240708
["ID","MTS","AMOUNT","RATE_DAILY","PERIOD"]
[331436313,1720404658488,-236.921477,0.00013868,2]
[331436314,1720404658498,-250.602422,0.00013868,2]
[331436315,1720404658508,-236.921477,0.00013868,2]
[331436316,1720404658518,-467.172915,0.00013868,2]
[331436317,1720404658529,-467.172915,0.00013868,2]
[331436318,1720404658538,-151.0,0.00013868,2]
[331436319,1720404658547,-250.602422,0.00013868,2]
[331436320,1720404658556,-955.51508,0.00013868,2]
[331436321,1720404658566,-955.51508,0.00013868,2]
[331436322,1720404658576,-528.897494,0.00013868,2]
[331436323,1720404658585,-528.897494,0.00013868,2]
[331436324,1720404658595,-151.0,0.00013868,2]
[331436325,1720404658604,-830.860615,0.00013868,2]
[331436326,1720404658613,-429.014698,0.00013868,2]
[331436327,1720404658623,-429.014698,0.00013868,2]
[331436328,1720404658633,-830.860615,0.00013868,2]
[331436329,1720404658642,-151.0,0.00013868,2]
[331436330,1720404658652,-530.036083,0.00013868,2]
[331436331,1720404658662,-530.036083,0.00013868,2]
[331436332,1720404658671,-301.011394,0.00013868,2]
[331436333,1720404658680,-158.793563,0.00013868,2]
[331436334,1720404658689,-301.011394,0.00013868,2]
[331436335,1720404658698,-158.793563,0.00013868,2]
[331436336,1720404658708,-203.220698,0.00013868,2]
[331436337,1720404658718,-203.220698,0.00013868,2]
[331436338,1720404658728,-151.0,0.00013868,2]
[331436339,1720404658738,-624.530763,0.00013868,2]
[331436340,1720404658747,-624.530767,0.00013868,2]
[331436341,1720404658756,-151.0,0.00013868,2]
[331436342,1720404658766,-352.848677,0.00013868,2]
[331436343,1720404658776,-352.848677,0.00013868,2]
[331436344,1720404658785,-151.0,0.00013868,2]
[331436345,1720404658794,-151.0,0.00013868,2]
[331436346,1720404658803,-353.179746,0.00013868,2]
[331436347,1720404658813,-353.179748,0.00013868,2]
[331436348,1720404658822,-151.0,0.00013868,2]
[331436349,1720404658831,-597.571931,0.00013868,2]
[331436350,1720404658840,-597.571937,0.00013868,2]
[331436351,1720404658850,-654.45232785,0.00013896,2]
[331436352,1720404658859,-178.55578708,0.00013898,2]
[331436353,1720404658868,-396.04763162,0.000139,2]
[331436354,1720404658877,-3244.64536957,0.000139,2]
[331436355,1720404658887,-151.0,0.000139,2]
[331436356,1720404658896,-151.0,0.000139,2]
[331436357,1720404658905,-151.0,0.000139,2]
[331436358,1720404658915,-151.0,0.000139,2]
[331436359,1720404658924,-180.134888,0.000139,2]
[331436360,1720404658933,-180.134888,0.000139,2]
[331436361,1720404658942,-151.0,0.000139,2]
[331436362,1720404658952,-1339.150764,0.000139,2]
[331436363,1720404658961,-1339.150764,0.000139,2]
[331436364,1720404658971,-423.233685,0.000139,2]
[331436365,1720404658980,-423.233685,0.000139,2]
[331436366,1720404658989,-198.418224,0.000139,2]
[331436367,1720404658999,-198.41821464,0.000139,2]
[331436368,1720404659008,-1460.33893,0.000139,2]
[331436369,1720404659018,-1460.338934,0.000139,2]
[331436370,1720404659028,-400.0,0.000139,5]
[331436371,1720404659038,-636.53088501,0.000139,2]
[331436372,1720404659047,-321.72300046,0.00013902,2]
[331436373,1720404659056,-2000.0,0.00013973,3]
[331436374,1720404659066,-150.0,0.00013995,2]
[331436375,1720404659075,-151.0,0.00013998,2]
[331436376,1720404659084,-151.0,0.00013998,2]
[331436377,1720404659094,-151.0,0.00013998,2]
[331436378,1720404659104,-151.0,0.00013998,2]
[331436379,1720404659113,-151.0,0.00013998,2]
[331436380,1720404659123,-151.0,0.00013998,2]
[331436381,1720404659133,-151.0,0.00013998,2]
[331436382,1720404659145,-151.0,0.00013998,2]
[331436383,1720404659154,-151.0,0.00013998,2]
[331436384,1720404659164,-151.0,0.00013998,2]
[331436385,1720404659174,-151.0,0.00013998,2]
[331436386,1720404659183,-296.64964,0.00013998,2]
[331436387,1720404659192,-296.64964,0.00013998,2]
[331436388,1720404659202,-250.29175,0.00013998,2]
[331436389,1720404659210,-250.29175,0.00013998,2]
[331436390,1720404659220,-201.577649,0.00013998,2]
[331436391,1720404659229,-201.577649,0.00013998,2]
[331436392,1720404659239,-211.674615,0.00013998,2]
[331436393,1720404659248,-211.674615,0.00013998,2]
[331436394,1720404659257,-151.0,0.00013998,2]
[331436395,1720404659266,-350.738097,0.00013998,2]
[331436396,1720404659276,-350.738097,0.00013998,2]
[331436397,1720404659286,-498.952866,0.00013998,2]
[331436398,1720404659295,-222.868327,0.00013998,2]
[331436399,1720404659304,-222.868327,0.00013998,2]
[331436400,1720404659314,-151.0,0.00013998,2]
[331436401,1720404659322,-151.0,0.00013998,2]
[331436402,1720404659332,-314.228481,0.00013998,2]
[331436403,1720404659341,-314.228481,0.00013998,2]
[331436404,1720404659350,-151.0,0.00013998,2]
[331436405,1720404659359,-151.0,0.00013998,2]
[331436406,1720404659368,-229.240522,0.00013998,2]
[331436407,1720404659377,-229.240522,0.00013998,2]
[331436408,1720404659387,-223.450138,0.00013998,2]
[331436409,1720404659396,-151.0,0.00013998,2]
[331436410,1720404659404,-223.450138,0.00013998,2]
[331436411,1720404659413,-443.469543,0.00013998,2]
[331436412,1720404659423,-443.469543,0.00013998,2]
[331436413,1720404659432,-510.20495,0.00013998,2]
[331436414,1720404659442,-443.469543,0.00013998,2]
[331436415,1720404659455,-443.469543,0.00013998,2]
[331436416,1720404659464,-510.20495,0.00013998,2]
[331436417,1720404659473,-151.0,0.00013998,2]
[331436418,1720404659483,-151.0,0.00013998,2]
[331436419,1720404659491,-151.0,0.00013998,2]
[331436420,1720404659501,-151.0,0.00013998,2]
[331436421,1720404659510,-151.0,0.00013998,2]
[331436422,1720404659520,-151.0,0.00013998,2]
[331436423,1720404659529,-151.0,0.00013998,2]
[331436424,1720404659540,-151.0,0.00013998,2]
[331436425,1720404659549,-152.27411,0.00013998,2]
[331436426,1720404659559,-151.0,0.00013998,2]
[331436427,1720404659568,-151.0,0.00013998,2]
[331436428,1720404659577,-151.0,0.00013998,2]
[331436429,1720404659586,-151.0,0.00013998,2]
[331436430,1720404659595,-151.0,0.00013998,2]
[331436431,1720404659606,-151.0,0.00013998,2]
[331436432,1720404659615,-1492.945374,0.00013998,2]
[331436433,1720404659625,-1492.945374,0.00013998,2]
[331436434,1720404659635,-1492.945375,0.00013998,2]
[331436435,1720404659644,-236.921477,0.00013998,2]
[331436436,1720404659653,-236.921477,0.00013998,2]
[331436437,1720404659663,-236.921477,0.00013998,2]
[331436438,1720404659673,-250.602422,0.00013998,2]
[331436439,1720404659686,-250.602422,0.00013998,2]
[331436440,1720404659696,-236.921477,0.00013998,2]
[331436441,1720404659705,-236.921477,0.00013998,2]
[331436442,1720404659715,-250.602422,0.00013998,2]
[331436443,1720404659725,-236.921475,0.00013998,2]
[331436444,1720404659735,-467.172915,0.00013998,2]
[331436445,1720404659744,-467.172915,0.00013998,2]
[331436446,1720404659753,-467.172915,0.00013998,2]
[331436447,1720404659763,-467.172915,0.00013998,2]
[331436448,1720404659772,-151.0,0.00013998,2]
[331436449,1720404659781,-467.172915,0.00013998,2]
[331436450,1720404659790,-151.0,0.00013998,2]
[331436451,1720404659799,-467.172911,0.00013998,2]
[331436452,1720404659808,-268.358351,0.00013998,2]
[331436453,1720404659817,-250.602422,0.00013998,2]
[331436454,1720404659826,-250.602422,0.00013998,2]
[331436455,1720404659835,-250.602428,0.00013998,2]
[331436456,1720404659844,-151.0,0.00013998,2]
[331436457,1720404659854,-151.0,0.00013998,2]
[331436458,1720404659863,-955.51508,0.00013998,2]
[331436459,1720404659872,-955.51508,0.00013998,2]
[331436460,1720404659881,-955.51508,0.00013998,2]
[331436461,1720404659891,-955.51508,0.00013998,2]
[331436462,1720404659900,-955.51508,0.00013998,2]
[331436463,1720404659909,-955.515087,0.00013998,2]
[331436464,1720404659918,-528.897494,0.00013998,2]
[331436465,1720404659927,-528.897494,0.00013998,2]
[331436466,1720404659936,-528.897494,0.00013998,2]
[331436467,1720404659946,-180.134888,0.00013998,2]
[331436468,1720404659955,-528.897494,0.00013998,2]
[331436469,1720404659965,-180.134888,0.00013998,2]
[331436470,1720404659974,-528.897494,0.00013998,2]
[331436471,1720404659983,-528.897492,0.00013998,2]
[331436472,1720404659992,-180.134888,0.00013998,2]
[331436473,1720404660001,-180.134898,0.00013998,2]
[331436474,1720404660010,-151.0,0.00013998,2]
[331436475,1720404660019,-151.0,0.00013998,2]
[331436476,1720404660030,-151.0,0.00013998,2]
[331436477,1720404660039,-151.0,0.00013998,2]
[331436478,1720404660048,-151.0,0.00013998,2]
[331436479,1720404660057,-1339.150764,0.00013998,2]
[331436480,1720404660067,-1339.150764,0.00013998,2]
[331436481,1720404660076,-1339.150764,0.00013998,2]
[331436482,1720404660086,-1339.150755,0.00013998,2]
[331436483,1720404660095,-830.860615,0.00013998,2]
[331436484,1720404660105,-429.014698,0.00013998,2]
[331436485,1720404660114,-429.014698,0.00013998,2]
[331436486,1720404660124,-429.014698,0.00013998,2]
[331436487,1720404660133,-830.860615,0.00013998,2]
[331436488,1720404660144,-429.014698,0.00013998,2]
[331436489,1720404660159,-830.860615,0.00013998,2]
[331436490,1720404660169,-429.014698,0.00013998,2]
[331436491,1720404660178,-429.014694,0.00013998,2]
[331436492,1720404660187,-830.860615,0.00013998,2]
[331436493,1720404660198,-830.860615,0.00013998,2]
[331436494,1720404660207,-830.860621,0.00013998,2]
[331436495,1720404660216,-151.0,0.00013998,2]
[331436496,1720404660227,-151.0,0.00013998,2]
[331436497,1720404660237,-151.0,0.00013998,2]
[331436498,1720404660247,-423.233685,0.00013998,2]
[331436499,1720404660256,-423.233685,0.00013998,2]
[331436500,1720404660266,-530.036083,0.00013998,2]
[331436501,1720404660277,-530.036083,0.00013998,2]
[331436502,1720404660286,-530.036083,0.00013998,2]
[331436503,1720404660295,-423.233685,0.00013998,2]
[331436504,1720404660304,-423.233685,0.00013998,2]
[331436505,1720404660316,-530.036083,0.00013998,2]
[331436506,1720404660326,-530.036083,0.00013998,2]
[331436507,1720404660335,-530.036092,0.00013998,2]
[331436508,1720404660345,-301.011394,0.00013998,2]
[331436509,1720404660354,-301.011394,0.00013998,2]
[331436510,1720404660363,-301.011394,0.00013998,2]
[331436511,1720404660372,-158.793563,0.00013998,2]
[331436512,1720404660382,-158.793563,0.00013998,2]
[331436513,1720404660391,-158.793563,0.00013998,2]
[331436514,1720404660400,-301.011394,0.00013998,2]
[331436515,1720404660410,-301.011394,0.00013998,2]
[331436516,1720404660419,-301.011402,0.00013998,2]
[331436517,1720404660428,-158.793563,0.00013998,2]
[331436518,1720404660437,-158.793563,0.00013998,2]
[331436519,1720404660446,-158.793568,0.00013998,2]
[331436520,1720404660456,-203.220698,0.00013998,2]
[331436521,1720404660465,-203.220698,0.00013998,2]
[331436522,1720404660475,-203.220698,0.00013998,2]
[331436523,1720404660484,-203.220698,0.00013998,2]
[331436524,1720404660494,-203.220698,0.00013998,2]
[331436525,1720404660503,-203.220703,0.00013998,2]
[331436526,1720404660512,-151.0,0.00013998,2]
[331436527,1720404660523,-151.0,0.00013998,2]
[331436528,1720404660532,-154.163192,0.00013998,2]
[331436529,1720404660542,-150.0,0.00013999,2]
[331436530,1720404660551,-1318.47881185,0.00013999,5]
[331436531,1720404660560,-1318.47881185,0.00013999,5]
[331436532,1720404660569,-163.365413,0.00013999,2]
[331436533,1720404660578,-163.365413,0.00013999,2]
[331436534,1720404660588,-151.0,0.00013999,2]
[331436535,1720404660597,-151.0,0.00013999,2]
[331436536,1720404660606,-151.0,0.00013999,2]
[331436537,1720404660615,-151.0,0.00013999,2]
[331436538,1720404660625,-151.0,0.00013999,2]
[331436539,1720404660634,-151.0,0.00013999,2]
[331436540,1720404660643,-196.737964,0.00013999,2]
[331436541,1720404660653,-196.737964,0.00013999,2]
[331436542,1720404660662,-196.737964,0.00013999,2]
[331436543,1720404660671,-196.737964,0.00013999,2]
[331436544,1720404660681,-151.0,0.00013999,2]
[331436545,1720404660694,-151.0,0.00013999,2]
[331436546,1720404660703,-151.0,0.00013999,2]
[331436547,1720404660713,-151.0,0.00013999,2]
[331436548,1720404660722,-151.0,0.00013999,2]
[331436549,1720404660731,-151.0,0.00013999,2]
[331436550,1720404660740,-151.0,0.00013999,2]
[331436551,1720404660750,-151.0,0.00013999,2]
[331436552,1720404660759,-151.0,0.00013999,2]
[331436553,1720404660768,-151.0,0.00013999,2]
[331436554,1720404660782,-151.0,0.00013999,2]
[331436555,1720404660791,-296.64964,0.00013999,2]
[331436556,1720404660802,-296.64964,0.00013999,2]
[331436557,1720404660812,-250.29175,0.00013999,2]
[331436558,1720404660821,-250.29175,0.00013999,2]
[331436559,1720404660831,-201.577649,0.00013999,2]
[331436560,1720404660841,-201.577649,0.00013999,2]
[331436561,1720404660851,-211.674615,0.00013999,2]
[331436562,1720404660860,-211.674615,0.00013999,2]
[331436563,1720404660870,-151.0,0.00013999,2]
[331436564,1720404660879,-350.738097,0.00013999,2]
[331436565,1720404660888,-350.738097,0.00013999,2]
[331436566,1720404660898,-350.738097,0.00013999,2]
[331436567,1720404660907,-350.738097,0.00013999,2]
[331436568,1720404660917,-350.738097,0.00013999,2]
[331436569,1720404660926,-350.738097,0.00013999,2]
[331436570,1720404660935,-498.952866,0.00013999,2]
[331436571,1720404660945,-222.868327,0.00013999,2]
[331436572,1720404660954,-222.868327,0.00013999,2]
[331436573,1720404660963,-222.868327,0.00013999,2]
[331436574,1720404660972,-222.868327,0.00013999,2]
[331436575,1720404660982,-222.868327,0.00013999,2]
[331436576,1720404660991,-222.868327,0.00013999,2]
[331436577,1720404661001,-151.0,0.00013999,2]
[331436578,1720404661010,-151.0,0.00013999,2]
[331436579,1720404661019,-151.0,0.00013999,2]
[331436580,1720404661032,-151.0,0.00013999,2]
[331436581,1720404661041,-151.0,0.00013999,2]
[331436582,1720404661050,-151.0,0.00013999,2]
[331436583,1720404661060,-314.228481,0.00013999,2]
[331436584,1720404661069,-314.228481,0.00013999,2]
[331436585,1720404661079,-314.228481,0.00013999,2]
[331436586,1720404661088,-314.228481,0.00013999,2]
[331436587,1720404661097,-314.228481,0.00013999,2]
[331436588,1720404661107,-314.228481,0.00013999,2]
[331436589,1720404661115,-151.0,0.00013999,2]
[331436590,1720404661125,-151.0,0.00013999,2]
[331436591,1720404661133,-151.0,0.00013999,2]
[331436592,1720404661146,-229.240522,0.00013999,2]
[331436593,1720404661156,-229.240522,0.00013999,2]
[331436594,1720404661165,-229.240522,0.00013999,2]
[331436595,1720404661174,-229.240522,0.00013999,2]
[331436596,1720404661184,-229.240522,0.00013999,2]
[331436597,1720404661194,-229.240522,0.00013999,2]
[331436598,1720404661204,-223.450138,0.00013999,2]
[331436599,1720404661215,-223.450138,0.00013999,2]
[331436600,1720404661224,-223.450138,0.00013999,2]
[331436601,1720404661234,-296.397978,0.00013999,2]
[331436602,1720404661244,-223.450138,0.00013999,2]
[331436603,1720404661253,-223.450138,0.00013999,2]
[331436604,1720404661264,-223.450138,0.00013999,2]
[331436605,1720404661274,-443.469543,0.00013999,2]
[331436606,1720404661284,-443.469543,0.00013999,2]
[331436607,1720404661293,-443.469543,0.00013999,2]
[331436608,1720404661302,-510.20495,0.00013999,2]
[331436609,1720404661311,-510.20495,0.00013999,2]
[331436610,1720404661320,-510.20495,0.00013999,2]
[331436611,1720404661330,-443.469543,0.00013999,2]
[331436612,1720404661340,-443.469543,0.00013999,2]
[331436613,1720404661349,-510.20495,0.00013999,2]
[331436614,1720404661359,-443.469543,0.00013999,2]
[331436615,1720404661369,-510.20495,0.00013999,2]
[331436616,1720404661378,-510.20495,0.00013999,2]
[331436617,1720404661388,-151.0,0.00013999,2]
[331436618,1720404661398,-151.0,0.00013999,2]
[331436619,1720404661407,-151.0,0.00013999,2]
[331436620,1720404661416,-151.0,0.00013999,2]
[331436621,1720404661426,-151.0,0.00013999,2]
[331436622,1720404661435,-186.668895,0.00013999,2]
[331436623,1720404661445,-151.0,0.00013999,2]
[331436624,1720404661455,-151.0,0.00013999,2]
[331436625,1720404661465,-151.0,0.00013999,2]
[331436626,1720404661475,-151.0,0.00013999,2]
[331436627,1720404661486,-151.0,0.00013999,2]
[331436628,1720404661495,-151.0,0.00013999,2]
[331436629,1720404661505,-151.0,0.00013999,2]
[331436630,1720404661514,-151.0,0.00013999,2]
[331436631,1720404661525,-151.0,0.00013999,2]
[331436632,1720404661534,-165.122692,0.00013999,2]
[331436633,1720404661544,-151.0,0.00013999,2]
[331436634,1720404661553,-151.0,0.00013999,2]
[331436635,1720404661563,-171.533658,0.00013999,2]
[331436636,1720404661572,-151.0,0.00013999,2]
[331436637,1720404661582,-151.0,0.00013999,2]
[331436638,1720404661592,-151.0,0.00013999,2]
[331436639,1720404661601,-151.0,0.00013999,2]
[331436640,1720404661610,-151.0,0.00013999,2]
[331436641,1720404661620,-151.0,0.00013999,2]
[331436642,1720404661629,-150.0,0.00014,2]
[331436643,1720404661639,-150.0,0.00014,2]
[331436644,1720404661648,-150.0,0.00014,2]
[331436645,1720404661658,-150.0,0.00014,2]
[331436646,1720404661667,-3058727.0527519,0.00014,2]
[331436647,1720404661676,-719572.10794043,0.00014,2]
[331436648,1720404661687,-1347049.81600852,0.00014,2]
[331436649,1720404661697,-1960595.38852364,0.00014,2]
[331436650,1720404661706,-1950409.00936016,0.00014,2]
[331436651,1720404664126,-231610.58143748,0.00014,2]
[331436652,1720404664154,-167075.42383485,0.00014,2]
[331436653,1720404664173,-204750.29883418,0.00014,2]
[331436654,1720404664186,-168275.79527378,0.00014,2]
[331436655,1720404664197,-584.95071165,0.00014,2]
[331436656,1720404664209,-893.98641955,0.00014,2]
[331436657,1720404664318,-495.40756549,0.00013699,5]
[331436658,1720404664330,-737.39186262,0.00013699,5]
[331436659,1720404664341,-267.20057189,0.00013699,5]
[331436660,1720404664350,-548498.61049426,0.00014,2]
[331436661,1720404664362,-590.50109525,0.00014,2]
[331436662,1720404664374,-440.56778781,0.00014,2]
[331436663,1720404664387,-1430.94809499,0.00014,2]
[331436664,1720404664401,-305.9602151,0.00014,2]
[331436665,1720404664412,-553.5,0.00014,2]
[331436666,1720404664447,-651.34078891,0.00014,2]
[331436667,1720404664459,-7547.9518725,0.00014,2]
[331436668,1720404664470,-5929.82548944,0.00014,2]
[331436669,1720404664482,-398.61747352,0.00014,2]
[331436670,1720404664494,-307.86076332,0.00014,2]
[331436671,1720404664573,-377.96233534,0.00014,2]
[331436672,1720404664585,-487.18602873,0.00014,2]
[331436673,1720404664596,-296.26673161,0.00014,2]
[331436674,1720404664614,-40072.34750543,0.00014,2]
[331436675,1720404664625,-18687.90820847,0.00014,2]
[331436676,1720404664638,-11614.4535287,0.00014,2]
[331436677,1720404664649,-306.40574327,0.00014,2]
[331436678,1720404664661,-389.83212623,0.00014,2]
[331436679,1720404664672,-456.95008335,0.00014,2]
[331436680,1720404664687,-26977.16239601,0.00014,2]
[331436681,1720404671890,151.070809,0.00025,73]
[331436682,1720404677395,151.070809,0.00025,74]
[331436683,1720404680587,151.070809,0.00025,75]
[331436684,1720404686600,151.070809,0.00025,76]
[331436685,1720404790696,151.070811,0.00025,77]
[331436686,1720404803382,151.070811,0.00027,120]
[331436687,1720404817707,151.070811,0.00025,60]
[331436688,1720404822225,151.070811,0.00025,61]
[331436689,1720404853127,151.070811,0.00025,62]
[331436690,1720404923790,227.24934482,0.00011199,2]
[331436693,1720405035749,415.75,0.00010626,2]
[331436695,1720405202995,8184.31968297,0.00011108,2]
[331436701,1720405435106,105576.0,0.00011193,2]
[331436717,1720405755119,-1181.977028,0.00011265,2]
[331436719,1720405755151,-3762.92112003,0.00011322,2]
[331436722,1720405755185,-167.07293921,0.00011422,2]
[331436724,1720405755215,-300.0,0.00011521,2]
[331436726,1720405755247,-3542.52952778,0.00011522,2]
[331436729,1720405755284,-5613.90986011,0.00011522,2]
[331436744,1720405817163,650.0,0.00021,120]
[331436748,1720405832352,-230.93301211,0.00011522,2]
[331436749,1720405832362,-313.0,0.00012,2]
[331436750,1720405832371,-202.62863566,0.00012458,2]
[331436751,1720405832472,-47.37136434,0.00012458,2]
[331436753,1720405832483,-196.18,0.00012477,2]
[331436755,1720405832494,-586.53552664,0.00012568,2]
[331436756,1720405832509,-756.53960123,0.00012568,2]
[331436757,1720405832526,-150.0,0.000126,2]
[331436759,1720405832537,-1000.0,0.00012647,2]
[331436761,1720405832547,-499.99,0.00012789,2]
[331436763,1720405832560,-3112.2815159,0.00012915,2]
[331436765,1720405832575,-406.15265218,0.00012915,2]
[331436768,1720405832587,-41.74363192,0.00012915,2]
[331436770,1720405832597,-4202.10043885,0.00012915,2]
[331436771,1720405832610,-4869.87206032,0.00012915,2]
[331436774,1720405832679,-142.37580083,0.00012915,2]
[331436775,1720405832689,-175.341084,0.00013014,2]
[331436776,1720405832699,-177.367032,0.00013014,2]
[331436777,1720405832708,-6039.38946507,0.00013014,2]
[331436778,1720405832720,-280.83854349,0.00013014,2]
[331436795,1720405838589,-1289.46404444,0.00013014,2]
[331436796,1720405838599,-3661.747592,0.00013014,2]
[331436797,1720405838609,-12208.796343,0.00013014,2]
[331436798,1720405838619,-3003.269859,0.00013014,2]
[331436799,1720405838630,-2041.79616157,0.00013014,2]
[331436800,1720405838642,-2350.51327843,0.00013014,2]
[331436802,1720405838652,-260.855598,0.00013014,2]
[331436804,1720405838660,-282.63112359,0.00013014,2]
[331436839,1720405838997,394.96,0.00010872,2]
[331436906,1720405839754,-19.07112841,0.00013014,2]
[331436908,1720405839764,-711.48820941,0.00013115,2]
[331436910,1720405839776,-74.58409059,0.00013115,2]
[331436912,1720405839786,-394.96,0.00013136,2]
[331436914,1720405839795,-322.6748983,0.00013174,2]
[331436916,1720405839805,-166.60509874,0.00013174,2]
[331436917,1720405839815,-1784.89510796,0.00013174,2]
[331436927,1720405839964,-715.10489204,0.00013174,2]
[331436928,1720405839975,-177.367032,0.00013177,2]
[331436929,1720405839985,-500.81857596,0.00013177,2]
[331436930,1720405839998,-648.60467494,0.00013177,2]
[331436932,1720405840011,-1514.85100044,0.00013177,2]
[331436934,1720405840024,-4945.41780166,0.00013177,2]
[331436936,1720405840034,-3661.747592,0.00013177,2]
[331436938,1720405840044,-12208.796343,0.00013177,2]
[331436940,1720405840055,-3003.269859,0.00013177,2]
[331436942,1720405840065,-4392.30944,0.00013177,2]
[331436944,1720405840076,-260.855598,0.00013177,2]
[331436946,1720405840086,-301.702252,0.00013177,2]
[331436948,1720405840096,-1304.0,0.00013215,2]
[331436950,1720405840107,-2377.0,0.00013215,2]
[331436952,1720405840117,-150.42,0.00013215,2]
[331436954,1720405840127,-1989.0,0.00013215,2]
[331436956,1720405840139,-550.377,0.00013215,2]
[331436958,1720405840149,-22231.4594876,0.00013215,2]
[331436960,1720405840162,-286.88,0.00013215,2]
[331436963,1720405840180,-1163.0,0.00013215,2]
[331436965,1720405840191,-8155.40782334,0.00013215,2]
[331436967,1720405840205,-2725.51973396,0.00013215,2]
[331437026,1720405840946,-3818.9859551,0.00013215,2]
[331437027,1720405840956,-5198.787,0.00013215,2]
[331437028,1720405840966,-5831.808,0.00013215,2]
[331437029,1720405840976,-1202.706,0.00013215,2]
[331437030,1720405840986,-363.723,0.00013215,2]
[331437031,1720405840996,-1073.852,0.00013215,2]
[331437032,1720405841005,-86392.29076123,0.00013274,2]
[331437033,1720405841018,-65199.91268114,0.00013274,2]
[331437034,1720405841050,-1588.71925122,0.00013274,2]
[331437035,1720405841062,-546.33649673,0.00013274,2]
[331437036,1720405841074,-432.70311237,0.00013274,2]
[331437037,1720405841085,-2427.8793377,0.00013274,2]
[331437038,1720405841097,-458.21493042,0.00013274,2]
[331437049,1720405842814,-541.472,0.00013215,2]
[331437051,1720405842824,-599.328,0.00013274,2]
[331437061,1720405842984,-1570.47485684,0.00013274,2]
[331437062,1720405843000,-1290.38459794,0.00013274,2]
[331437063,1720405843012,-47925.97897441,0.00013274,2]
[331437064,1720405843022,-488.776,0.00013274,2]
[331437065,1720405843032,-68022.5205,0.00013274,2]
[331437066,1720405843042,-172.3657,0.00013274,2]
[331437067,1720405843051,-150.0,0.000133,2]
[331437068,1720405843061,-177.367032,0.0001334,2]
[331437069,1720405843070,-7609.692053,0.0001334,2]
[331437070,1720405843079,-3661.747592,0.0001334,2]
[331437071,1720405843088,-12208.796343,0.0001334,2]
[331437072,1720405843098,-3003.269859,0.0001334,2]
[331437073,1720405843107,-4392.30944,0.0001334,2]
[331437074,1720405843116,-260.855598,0.0001334,2]
[331437075,1720405843126,-301.702252,0.0001334,2]
[331437076,1720405843135,-582.57934699,0.00013421,2]
[331437077,1720405843144,-322.67489827,0.00013421,2]
[331437078,1720405843153,-1600.0,0.00013468,2]
[331437079,1720405843163,-899.14507577,0.00013472,2]
[331437080,1720405843173,-1000.0,0.0001348,2]
[331437081,1720405843182,-21377.1684,0.0001348,2]
[331437082,1720405843191,-177.367032,0.00013503,2]
[331437083,1720405843200,-7609.692053,0.00013503,2]
[331437084,1720405843209,-3661.747592,0.00013503,2]
[331437085,1720405843219,-12208.796343,0.00013503,2]
[331437086,1720405843228,-3003.269859,0.00013503,2]
[331437087,1720405843238,-4392.30944,0.00013503,2]
[331437088,1720405843247,-260.855598,0.00013503,2]
[331437089,1720405843256,-301.702252,0.00013503,2]
[331437090,1720405843266,-689.37361218,0.00013574,2]
[331437091,1720405843276,-175.341084,0.00013665,2]
[331437092,1720405843286,-177.367032,0.00013665,2]
[331437093,1720405843295,-7609.692053,0.00013665,2]
[331437094,1720405843305,-3661.747592,0.00013665,2]
[331437095,1720405843314,-12208.796343,0.00013665,2]
[331437096,1720405843324,-3003.269859,0.00013665,2]
[331437097,1720405843333,-4392.30944,0.00013665,2]
[331437098,1720405843343,-260.855598,0.00013665,2]
[331437099,1720405843352,-301.702252,0.00013665,2]